[Event "*** Titled Tuesday Blitz"]
[Site "Chess.com"]
[Date "2020.04.21"]
[Round "4"]
[White "dalmatinac101"]
[Black "vladimirdamjanovic"]
[Result "1/2-1/2"]
[WhiteElo "2802"]
[BlackElo "2635"]
[TimeControl "180+1"]
[EndTime "10:39:55 PDT"]
[Termination "Game drawn by repetition"]

1. e4 {[%clk 0:00:43.7]} 1... c6 {[%clk 0:02:59.3]} 2. d4 {[%clk 0:00:43]} 2...
d5 {[%clk 0:02:58.5]} 3. Nc3 {[%clk 0:00:43.9]} 3... dxe4 {[%clk 0:02:55.7]} 4.
Nxe4 {[%clk 0:00:44.8]} 4... Nf6 {[%clk 0:02:56]} 5. Nxf6+ {[%clk 0:00:44.2]}
5... exf6 {[%clk 0:02:56.9]} 6. c3 {[%clk 0:00:44.6]} 6... Bd6 {[%clk
0:02:52.6]} 7. Bd3 {[%clk 0:00:45.2]} 7... Na6 {[%clk 0:02:41.2]} 8. Qc2 {[%clk
0:00:46.1]} 8... Nc7 {[%clk 0:02:37.5]} 9. Ne2 {[%clk 0:00:46.4]} 9... Nd5
{[%clk 0:02:35.3]} 10. a3 {[%clk 0:00:45.5]} 10... h6 {[%clk 0:02:13]} 11. c4
{[%clk 0:00:45]} 11... Ne7 {[%clk 0:02:13.3]} 12. O-O {[%clk 0:00:44.7]} 12...
O-O {[%clk 0:02:12.5]} 13. Bf4 {[%clk 0:00:45]} 13... Qc7 {[%clk 0:02:10.8]} 14.
Bxd6 {[%clk 0:00:44.9]} 14... Qxd6 {[%clk 0:02:11.7]} 15. Rfe1 {[%clk
0:00:45.6]} 15... Bg4 {[%clk 0:02:06.8]} 16. Qc3 {[%clk 0:00:42.8]} 16... Rfd8
{[%clk 0:02:02.2]} 17. Bc2 {[%clk 0:00:30.1]} 17... Bf5 {[%clk 0:02:01.7]} 18.
Rad1 {[%clk 0:00:27.4]} 18... b5 {[%clk 0:01:56.5]} 19. Bxf5 {[%clk 0:00:23.4]}
19... Nxf5 {[%clk 0:01:57.4]} 20. c5 {[%clk 0:00:22.7]} 20... Qc7 {[%clk
0:01:47.7]} 21. d5 {[%clk 0:00:21.7]} 21... Rxd5 {[%clk 0:01:46.6]} 22. Rxd5
{[%clk 0:00:21.4]} 22... cxd5 {[%clk 0:01:47.5]} 23. Nd4 {[%clk 0:00:21.9]}
23... Nxd4 {[%clk 0:01:39.2]} 24. Qxd4 {[%clk 0:00:22.8]} 24... Qc6 {[%clk
0:01:35]} 25. b4 {[%clk 0:00:22.7]} 25... a5 {[%clk 0:01:28.7]} 26. h3 {[%clk
0:00:18.9]} 26... axb4 {[%clk 0:01:28.4]} 27. axb4 {[%clk 0:00:19.8]} 27... g6
{[%clk 0:01:25.8]} 28. g3 {[%clk 0:00:19.7]} 28... Kg7 {[%clk 0:01:24.4]} 29. h4
{[%clk 0:00:20.1]} 29... h5 {[%clk 0:01:19.6]} 30. Kg2 {[%clk 0:00:19.8]} 30...
Rc8 {[%clk 0:01:04.6]} 31. Re3 {[%clk 0:00:19.6]} 31... Ra8 {[%clk 0:01:02.2]}
32. Re7 {[%clk 0:00:19.4]} 32... Ra2 {[%clk 0:00:54.6]} 33. Re3 {[%clk
0:00:17.2]} 33... Rc2 {[%clk 0:00:51]} 34. Rc3 {[%clk 0:00:13.1]} 34... Rb2
{[%clk 0:00:39]} 35. Ra3 {[%clk 0:00:12.7]} 35... Rc2 {[%clk 0:00:38.1]} 36. Rc3
{[%clk 0:00:12.9]} 36... Rb2 {[%clk 0:00:34.6]} 37. Rd3 {[%clk 0:00:13.2]} 37...
Rc2 {[%clk 0:00:34.4]} 38. Rc3 {[%clk 0:00:08.6]} 1/2-1/2

[Event "*** Titled Tuesday Blitz"]
[Site "Chess.com"]
[Date "2020.04.21"]
[Round "4"]
[White "Akhayan"]
[Black "axvesik"]
[Result "0-1"]
[WhiteElo "2271"]
[BlackElo "2461"]
[TimeControl "180+1"]
[EndTime "10:40:00 PDT"]
[Termination "axvesik won by resignation"]

1. d4 {[%clk 0:03:00.9]} 1... Nf6 {[%clk 0:02:59.6]} 2. Nf3 {[%clk 0:03:00.9]}
2... e6 {[%clk 0:03:00.5]} 3. Bf4 {[%clk 0:03:00]} 3... c5 {[%clk 0:02:59.5]} 4.
c3 {[%clk 0:02:59.4]} 4... Be7 {[%clk 0:02:59.4]} 5. e3 {[%clk 0:02:59.4]} 5...
O-O {[%clk 0:02:59.7]} 6. Bd3 {[%clk 0:02:59.5]} 6... cxd4 {[%clk 0:03:00.4]} 7.
exd4 {[%clk 0:02:58.8]} 7... d6 {[%clk 0:03:00.7]} 8. Nbd2 {[%clk 0:02:58.7]}
8... b6 {[%clk 0:03:01.4]} 9. O-O {[%clk 0:02:58.8]} 9... Bb7 {[%clk 0:03:02]}
10. Qe2 {[%clk 0:02:59]} 10... Nbd7 {[%clk 0:03:02.5]} 11. h3 {[%clk 0:02:58.8]}
11... a6 {[%clk 0:02:54]} 12. Rfe1 {[%clk 0:02:58.6]} 12... Qc7 {[%clk
0:02:53.9]} 13. Ne4 {[%clk 0:02:54.2]} 13... Nxe4 {[%clk 0:02:51.9]} 14. Bxe4
{[%clk 0:02:54.1]} 14... Bxe4 {[%clk 0:02:52.5]} 15. Qxe4 {[%clk 0:02:53.8]}
15... Nf6 {[%clk 0:02:53.1]} 16. Qe2 {[%clk 0:02:52.1]} 16... b5 {[%clk
0:02:50.8]} 17. Bg5 {[%clk 0:02:51.2]} 17... h6 {[%clk 0:02:46]} 18. Bh4 {[%clk
0:02:50.5]} 18... Nd5 {[%clk 0:02:42.1]} 19. Bxe7 {[%clk 0:02:22.1]} 19... Qxe7
{[%clk 0:02:39.5]} 20. Qe4 {[%clk 0:02:19.9]} 20... Qf6 {[%clk 0:02:29]} 21. a4
{[%clk 0:02:08.2]} 21... Rab8 {[%clk 0:02:22.7]} 22. axb5 {[%clk 0:02:05.7]}
22... axb5 {[%clk 0:02:22.6]} 23. Ra6 {[%clk 0:02:01.5]} 23... Rfd8 {[%clk
0:02:22.1]} 24. Rea1 {[%clk 0:01:59]} 24... Nf4 {[%clk 0:02:08.7]} 25. Kh2
{[%clk 0:01:41.6]} 25... g5 {[%clk 0:01:58.1]} 26. Ra8 {[%clk 0:01:31.2]} 26...
Kg7 {[%clk 0:01:54.9]} 27. Rxb8 {[%clk 0:01:30.4]} 27... Rxb8 {[%clk 0:01:54.4]}
28. Nd2 {[%clk 0:01:08.8]} 28... d5 {[%clk 0:01:36.7]} 29. Qf3 {[%clk
0:01:08.2]} 29... b4 {[%clk 0:01:34.9]} 30. g3 {[%clk 0:01:06.9]} 30... bxc3
{[%clk 0:01:32.8]} 31. bxc3 {[%clk 0:01:05.2]} 31... Rb2 {[%clk 0:01:29.1]} 32.
Rd1 {[%clk 0:00:52.7]} 32... Ng6 {[%clk 0:01:25.9]} 33. Qxf6+ {[%clk 0:00:52.5]}
33... Kxf6 {[%clk 0:01:26.1]} 34. Kg2 {[%clk 0:00:52.9]} 34... Rc2 {[%clk
0:01:26.1]} 35. c4 {[%clk 0:00:41.1]} 35... dxc4 {[%clk 0:01:18.5]} 36. Ne4+
{[%clk 0:00:41]} 36... Kg7 {[%clk 0:01:17.4]} 37. d5 {[%clk 0:00:37.8]} 37...
exd5 {[%clk 0:01:16]} 38. Rxd5 {[%clk 0:00:37.6]} 38... Nf8 {[%clk 0:01:13]} 39.
Rc5 {[%clk 0:00:29.1]} 39... Ne6 {[%clk 0:01:12.9]} 40. Rc6 {[%clk 0:00:29.2]}
40... Nd4 {[%clk 0:01:04]} 41. Rc7 {[%clk 0:00:28.1]} 41... Nb5 {[%clk
0:00:54.2]} 42. Rc5 {[%clk 0:00:26.8]} 42... Na3 {[%clk 0:00:52.8]} 43. Rc7
{[%clk 0:00:26.1]} 43... Kg6 {[%clk 0:00:49]} 44. Nd6 {[%clk 0:00:24.1]} 44...
f6 {[%clk 0:00:46.1]} 45. Ra7 {[%clk 0:00:24]} 45... Rd2 {[%clk 0:00:44.8]} 46.
Rxa3 {[%clk 0:00:22.9]} 46... Rxd6 {[%clk 0:00:44.4]} 47. Rc3 {[%clk 0:00:21.8]}
47... Rc6 {[%clk 0:00:44.6]} 48. g4 {[%clk 0:00:22.1]} 48... f5 {[%clk
0:00:41.9]} 49. Kf3 {[%clk 0:00:22.3]} 49... Kf6 {[%clk 0:00:42]} 50. Ke3 {[%clk
0:00:21.9]} 50... Ke5 {[%clk 0:00:42.3]} 51. f3 {[%clk 0:00:20.1]} 51... f4+
{[%clk 0:00:41.3]} 52. Kf2 {[%clk 0:00:19.7]} 52... Kd4 {[%clk 0:00:41.8]} 53.
Rc1 {[%clk 0:00:19.3]} 53... c3 {[%clk 0:00:42.4]} 54. Rc2 {[%clk 0:00:18.6]}
54... Kd3 {[%clk 0:00:42.5]} 0-1

[Event "*** Titled Tuesday Blitz"]
[Site "Chess.com"]
[Date "2020.04.21"]
[Round "4"]
[White "Kaponov"]
[Black "AnonymusDonkey"]
[Result "0-1"]
[WhiteElo "2122"]
[BlackElo "2397"]
[TimeControl "180+1"]
[EndTime "10:40:00 PDT"]
[Termination "AnonymusDonkey won by checkmate"]

1. d4 {[%clk 0:03:00.9]} 1... Nf6 {[%clk 0:02:58.8]} 2. c4 {[%clk 0:03:01.3]}
2... c5 {[%clk 0:02:59]} 3. d5 {[%clk 0:03:01.4]} 3... b5 {[%clk 0:02:59.5]} 4.
cxb5 {[%clk 0:03:01.7]} 4... a6 {[%clk 0:03:00.1]} 5. bxa6 {[%clk 0:02:52.1]}
5... g6 {[%clk 0:02:59.7]} 6. Nc3 {[%clk 0:02:52.4]} 6... Bg7 {[%clk 0:03:00]}
7. e4 {[%clk 0:02:52.4]} 7... O-O {[%clk 0:02:59.2]} 8. Nf3 {[%clk 0:02:29]}
8... Qa5 {[%clk 0:02:58.6]} 9. Bd2 {[%clk 0:02:25.7]} 9... Bxa6 {[%clk
0:02:57.9]} 10. Qc2 {[%clk 0:02:13.8]} 10... e6 {[%clk 0:02:42.1]} 11. dxe6
{[%clk 0:02:04.3]} 11... fxe6 {[%clk 0:02:41.4]} 12. Be2 {[%clk 0:01:48.8]}
12... Bxe2 {[%clk 0:02:22.4]} 13. Nxe2 {[%clk 0:01:48.4]} 13... Qa6 {[%clk
0:02:22.4]} 14. Bc3 {[%clk 0:01:45.5]} 14... d5 {[%clk 0:02:12]} 15. O-O {[%clk
0:01:25.9]} 15... d4 {[%clk 0:02:08.7]} 16. Nexd4 {[%clk 0:01:15.1]} 16... cxd4
{[%clk 0:02:08.3]} 17. Bxd4 {[%clk 0:01:16]} 17... Nc6 {[%clk 0:02:00.4]} 18.
Bc3 {[%clk 0:01:14.3]} 18... Qc4 {[%clk 0:01:53.1]} 19. Nd2 {[%clk 0:01:06.2]}
19... Qc5 {[%clk 0:01:33.9]} 20. Qb3 {[%clk 0:00:55.5]} 20... Kh8 {[%clk
0:01:08]} 21. h3 {[%clk 0:00:54.8]} 21... Nd4 {[%clk 0:01:04.7]} 22. Qd1 {[%clk
0:00:34.7]} 22... Rad8 {[%clk 0:00:59.7]} 23. Nb3 {[%clk 0:00:29.3]} 23... Nxb3
{[%clk 0:00:53.3]} 24. Qxb3 {[%clk 0:00:29.2]} 24... Nxe4 {[%clk 0:00:52.4]} 25.
Bxg7+ {[%clk 0:00:29.2]} 25... Kxg7 {[%clk 0:00:52.5]} 26. Qxe6 {[%clk
0:00:29.4]} 26... Rxf2 {[%clk 0:00:46.2]} 27. Rxf2 {[%clk 0:00:18.8]} 27...
Qxf2+ {[%clk 0:00:46]} 28. Kh2 {[%clk 0:00:16.9]} 28... Qf4+ {[%clk 0:00:24.1]}
29. Kg1 {[%clk 0:00:13.9]} 29... Rd2 {[%clk 0:00:12.1]} 30. Rf1 {[%clk
0:00:09.2]} 30... Qe3+ {[%clk 0:00:10.4]} 31. Kh2 {[%clk 0:00:07.5]} 31... Qg3+
{[%clk 0:00:10.4]} 32. Kh1 {[%clk 0:00:04.5]} 32... Qxg2# {[%clk 0:00:11.3]} 0-1

[Event "*** Titled Tuesday Blitz"]
[Site "Chess.com"]
[Date "2020.04.21"]
[Round "4"]
[White "dragos420"]
[Black "DinaBelenkaya"]
[Result "1-0"]
[WhiteElo "2508"]
[BlackElo "2221"]
[TimeControl "180+1"]
[EndTime "10:40:03 PDT"]
[Termination "dragos420 won by checkmate"]

1. e4 {[%clk 0:03:00.9]} 1... d5 {[%clk 0:02:58.9]} 2. exd5 {[%clk 0:03:00.7]}
2... Qxd5 {[%clk 0:02:58.5]} 3. Nc3 {[%clk 0:03:00.8]} 3... Qa5 {[%clk
0:02:58.2]} 4. Nf3 {[%clk 0:02:59.6]} 4... c6 {[%clk 0:02:51.9]} 5. Be2 {[%clk
0:02:58.3]} 5... Nf6 {[%clk 0:02:49.2]} 6. O-O {[%clk 0:02:58.8]} 6... Bg4
{[%clk 0:02:43.3]} 7. a3 {[%clk 0:02:59.2]} 7... e6 {[%clk 0:02:41.9]} 8. b4
{[%clk 0:02:59.2]} 8... Qc7 {[%clk 0:02:41.8]} 9. Bb2 {[%clk 0:02:59.2]} 9...
Bd6 {[%clk 0:02:41.1]} 10. h3 {[%clk 0:02:59.2]} 10... Bh5 {[%clk 0:02:40.4]}
11. d3 {[%clk 0:02:57.9]} 11... O-O {[%clk 0:02:39.5]} 12. Nd2 {[%clk
0:02:53.9]} 12... Bxe2 {[%clk 0:02:37.7]} 13. Qxe2 {[%clk 0:02:54.8]} 13... Nbd7
{[%clk 0:02:36.1]} 14. Nc4 {[%clk 0:02:45.9]} 14... Bf4 {[%clk 0:02:28.6]} 15.
Ne4 {[%clk 0:02:43.9]} 15... Nxe4 {[%clk 0:02:17.2]} 16. Qxe4 {[%clk 0:02:44.8]}
16... Rad8 {[%clk 0:01:58.7]} 17. Rae1 {[%clk 0:02:18.7]} 17... c5 {[%clk
0:01:33.1]} 18. b5 {[%clk 0:02:07.8]} 18... Rfe8 {[%clk 0:01:05.7]} 19. a4
{[%clk 0:02:00.5]} 19... Nf6 {[%clk 0:00:40.4]} 20. Bxf6 {[%clk 0:01:59]} 20...
gxf6 {[%clk 0:00:40.4]} 21. g3 {[%clk 0:01:55.3]} 21... Rd4 {[%clk 0:00:37.2]}
22. Qe2 {[%clk 0:01:48.9]} 22... Bh6 {[%clk 0:00:35.9]} 23. Qh5 {[%clk
0:01:44.2]} 23... Bg7 {[%clk 0:00:35.5]} 24. f4 {[%clk 0:01:29.5]} 24... Kh8
{[%clk 0:00:33.2]} 25. Qf3 {[%clk 0:01:26.7]} 25... Rg8 {[%clk 0:00:29.3]} 26.
Kh1 {[%clk 0:01:25]} 26... Bf8 {[%clk 0:00:25.6]} 27. g4 {[%clk 0:01:22.5]}
27... Be7 {[%clk 0:00:10.5]} 28. f5 {[%clk 0:01:17.9]} 28... e5 {[%clk
0:00:08.7]} 29. Re4 {[%clk 0:01:13.9]} 29... Bf8 {[%clk 0:00:08.2]} 30. Ne3
{[%clk 0:01:09]} 30... Bh6 {[%clk 0:00:07.5]} 31. Rxd4 {[%clk 0:01:03.3]} 31...
cxd4 {[%clk 0:00:07.3]} 32. Nc4 {[%clk 0:01:01.4]} 32... Bf4 {[%clk 0:00:06.7]}
33. Qe4 {[%clk 0:00:59.2]} 33... h5 {[%clk 0:00:06.8]} 34. Qf3 {[%clk
0:00:57.7]} 34... Qc8 {[%clk 0:00:06.2]} 35. Rg1 {[%clk 0:00:48.5]} 35... b6
{[%clk 0:00:06.2]} 36. gxh5 {[%clk 0:00:43.5]} 36... Rxg1+ {[%clk 0:00:06.2]}
37. Kxg1 {[%clk 0:00:44.4]} 37... Qxf5 {[%clk 0:00:06.7]} 38. Qg4 {[%clk
0:00:39.2]} 38... Qh7 {[%clk 0:00:06.2]} 39. Nd6 {[%clk 0:00:34.2]} 39... f5
{[%clk 0:00:03.8]} 40. Nxf5 {[%clk 0:00:33]} 40... Qg8 {[%clk 0:00:04]} 41. Kg2
{[%clk 0:00:31.8]} 41... Qe8 {[%clk 0:00:03.1]} 42. Qg7# {[%clk 0:00:30.9]} 1-0

[Event "*** Titled Tuesday Blitz"]
[Site "Chess.com"]
[Date "2020.04.21"]
[Round "4"]
[White "BrizuelaReivis"]
[Black "WiktoriaPOL"]
[Result "1-0"]
[WhiteElo "2266"]
[BlackElo "2051"]
[TimeControl "180+1"]
[EndTime "10:40:03 PDT"]
[Termination "BrizuelaReivis won on time"]

1. d4 {[%clk 0:03:00.9]} 1... Nf6 {[%clk 0:02:59.5]} 2. c4 {[%clk 0:03:01.4]}
2... g6 {[%clk 0:02:59.4]} 3. Nc3 {[%clk 0:03:02]} 3... Bg7 {[%clk 0:02:59.5]}
4. e4 {[%clk 0:03:01.5]} 4... d6 {[%clk 0:02:59.5]} 5. Nf3 {[%clk 0:03:02]} 5...
O-O {[%clk 0:02:59.9]} 6. Be2 {[%clk 0:03:02.6]} 6... e5 {[%clk 0:02:59.8]} 7.
O-O {[%clk 0:03:03.1]} 7... Nc6 {[%clk 0:02:59.2]} 8. d5 {[%clk 0:03:03.7]} 8...
Ne7 {[%clk 0:02:59.4]} 9. Ne1 {[%clk 0:03:04.4]} 9... Ne8 {[%clk 0:02:56.7]} 10.
Be3 {[%clk 0:03:04.8]} 10... f5 {[%clk 0:02:56.1]} 11. f3 {[%clk 0:03:05.4]}
11... Nf6 {[%clk 0:02:56.1]} 12. Rc1 {[%clk 0:03:03.6]} 12... f4 {[%clk
0:02:55.7]} 13. Bf2 {[%clk 0:03:03]} 13... g5 {[%clk 0:02:53.9]} 14. c5 {[%clk
0:03:03.3]} 14... Ng6 {[%clk 0:02:54]} 15. cxd6 {[%clk 0:03:02.9]} 15... cxd6
{[%clk 0:02:53.7]} 16. Nb5 {[%clk 0:03:03.5]} 16... Rf7 {[%clk 0:02:53.9]} 17.
Nxa7 {[%clk 0:03:03.8]} 17... Bd7 {[%clk 0:02:41.8]} 18. Qb3 {[%clk 0:03:04]}
18... g4 {[%clk 0:02:07]} 19. Bb6 {[%clk 0:03:01.6]} 19... Qe7 {[%clk
0:02:01.9]} 20. Nb5 {[%clk 0:03:02]} 20... gxf3 {[%clk 0:01:53]} 21. gxf3 {[%clk
0:02:49.9]} 21... Ne8 {[%clk 0:01:50.6]} 22. Nc7 {[%clk 0:02:47]} 22... Rc8
{[%clk 0:01:37.9]} 23. Nd3 {[%clk 0:02:38.9]} 23... Nxc7 {[%clk 0:01:35.3]} 24.
Rxc7 {[%clk 0:02:21.3]} 24... Rxc7 {[%clk 0:01:35]} 25. Bxc7 {[%clk 0:02:22.2]}
25... Bh3 {[%clk 0:01:32.7]} 26. Rc1 {[%clk 0:02:19.5]} 26... Qg5+ {[%clk
0:01:24.9]} 27. Kf2 {[%clk 0:02:18.8]} 27... Qg2+ {[%clk 0:01:17.3]} 28. Ke1
{[%clk 0:02:15.4]} 28... Qg1+ {[%clk 0:01:12.8]} 29. Kd2 {[%clk 0:02:15.1]}
29... Qe3+ {[%clk 0:01:10.8]} 30. Kd1 {[%clk 0:02:13.8]} 30... Nh4 {[%clk
0:01:03.3]} 31. Ne1 {[%clk 0:02:12.5]} 31... Qd4+ {[%clk 0:00:50.5]} 32. Nd3
{[%clk 0:01:39.9]} 32... Qg1+ {[%clk 0:00:42.2]} 33. Ne1 {[%clk 0:01:32.8]}
33... Ng2 {[%clk 0:00:40.2]} 34. Qb4 {[%clk 0:01:25.7]} 34... Ne3+ {[%clk
0:00:27.1]} 35. Kd2 {[%clk 0:01:23.4]} 35... Nf1+ {[%clk 0:00:24.7]} 36. Kd1
{[%clk 0:01:15.5]} 36... Ne3+ {[%clk 0:00:10.1]} 37. Kd2 {[%clk 0:01:15.5]}
37... Qxh2 {[%clk 0:00:05.8]} 38. Bxd6 {[%clk 0:01:05.7]} 38... Bf1 {[%clk
0:00:04.2]} 39. Qb5 {[%clk 0:01:00.7]} 39... Bxe2 {[%clk 0:00:02.9]} 40. Qxe2
{[%clk 0:00:53.3]} 40... Qg3 {[%clk 0:00:02.2]} 41. Rc8+ {[%clk 0:00:51.3]}
41... Bf8 {[%clk 0:00:02]} 42. Bxe5 {[%clk 0:00:51.4]} 1-0

[Event "*** Titled Tuesday Blitz"]
[Site "Chess.com"]
[Date "2020.04.21"]
[Round "4"]
[White "Caterpiller35"]
[Black "DonBroca"]
[Result "1-0"]
[WhiteElo "2402"]
[BlackElo "2109"]
[TimeControl "180+1"]
[EndTime "10:40:05 PDT"]
[Termination "Caterpiller35 won by resignation"]

1. d4 {[%clk 0:02:59.8]} 1... Nf6 {[%clk 0:02:59.2]} 2. Bg5 {[%clk 0:02:59.1]}
2... c5 {[%clk 0:02:53.3]} 3. Bxf6 {[%clk 0:02:58.6]} 3... gxf6 {[%clk
0:02:50.7]} 4. d5 {[%clk 0:02:58.6]} 4... Qb6 {[%clk 0:02:41]} 5. Qc1 {[%clk
0:02:58.4]} 5... h5 {[%clk 0:02:39.3]} 6. c4 {[%clk 0:02:55.6]} 6... e6 {[%clk
0:02:38]} 7. Nc3 {[%clk 0:02:55.2]} 7... Bh6 {[%clk 0:02:36.3]} 8. e3 {[%clk
0:02:54.7]} 8... exd5 {[%clk 0:02:36]} 9. Nxd5 {[%clk 0:02:54.2]} 9... Qa5+
{[%clk 0:02:33.6]} 10. Qc3 {[%clk 0:02:49.2]} 10... Qxc3+ {[%clk 0:02:25.4]} 11.
Nxc3 {[%clk 0:02:48]} 11... d6 {[%clk 0:02:23.8]} 12. Nd5 {[%clk 0:02:47.3]}
12... Na6 {[%clk 0:02:20.4]} 13. Nxf6+ {[%clk 0:02:47]} 13... Kd8 {[%clk
0:02:20.6]} 14. Nd5 {[%clk 0:02:45.6]} 14... Be6 {[%clk 0:02:19.7]} 15. O-O-O
{[%clk 0:02:39.5]} 15... Bxd5 {[%clk 0:02:13.5]} 16. Rxd5 {[%clk 0:02:40.4]}
16... Ke7 {[%clk 0:02:10.2]} 17. a3 {[%clk 0:02:33.5]} 17... Nc7 {[%clk
0:02:06.9]} 18. Rd2 {[%clk 0:02:26.7]} 18... Rab8 {[%clk 0:02:05.1]} 19. Ne2
{[%clk 0:02:20.1]} 19... b5 {[%clk 0:02:03.5]} 20. cxb5 {[%clk 0:02:10.9]} 20...
Nxb5 {[%clk 0:02:02.6]} 21. g3 {[%clk 0:02:05.9]} 21... Rb6 {[%clk 0:02:00.6]}
22. Nf4 {[%clk 0:02:03.7]} 22... Nc7 {[%clk 0:01:50.5]} 23. Bc4 {[%clk 0:01:51]}
23... Bg7 {[%clk 0:01:43.5]} 24. b3 {[%clk 0:01:45.7]} 24... a5 {[%clk
0:01:35.2]} 25. a4 {[%clk 0:01:43.1]} 25... h4 {[%clk 0:01:18.7]} 26. Rhd1
{[%clk 0:01:33.1]} 26... hxg3 {[%clk 0:01:16.9]} 27. hxg3 {[%clk 0:01:32.5]}
27... Rh2 {[%clk 0:01:02.2]} 28. Kc2 {[%clk 0:01:27.2]} 28... Be5 {[%clk
0:00:58.3]} 29. f3 {[%clk 0:01:19.7]} 29... Rh6 {[%clk 0:00:48.9]} 30. g4 {[%clk
0:01:13.3]} 30... Rb8 {[%clk 0:00:43.7]} 31. g5 {[%clk 0:01:01.7]} 31... Rh4
{[%clk 0:00:35]} 32. g6 {[%clk 0:00:55.6]} 32... Bxf4 {[%clk 0:00:24.8]} 33.
exf4 {[%clk 0:00:55.7]} 33... Rd8 {[%clk 0:00:14.9]} 34. Bxf7 {[%clk 0:00:40]}
34... Rxf4 {[%clk 0:00:14.3]} 35. Bc4 {[%clk 0:00:29.7]} 35... Kf6 {[%clk
0:00:13.2]} 36. Rxd6+ {[%clk 0:00:26.8]} 36... Rxd6 {[%clk 0:00:13.1]} 37. Rxd6+
{[%clk 0:00:27.7]} 37... Ke5 {[%clk 0:00:13.2]} 38. g7 {[%clk 0:00:25.2]} 38...
Kxd6 {[%clk 0:00:08.4]} 39. g8=Q {[%clk 0:00:24.3]} 1-0

[Event "*** Titled Tuesday Blitz"]
[Site "Chess.com"]
[Date "2020.04.21"]
[Round "4"]
[White "yoolund"]
[Black "Bajecny"]
[Result "1/2-1/2"]
[WhiteElo "2550"]
[BlackElo "2372"]
[TimeControl "180+1"]
[EndTime "10:40:06 PDT"]
[Termination "Game drawn - insufficient material"]

1. d4 {[%clk 0:03:00.9]} 1... d5 {[%clk 0:02:59.9]} 2. Bf4 {[%clk 0:02:58.5]}
2... c5 {[%clk 0:02:59.6]} 3. e3 {[%clk 0:02:56.3]} 3... Nc6 {[%clk 0:02:59.6]}
4. c3 {[%clk 0:02:55.1]} 4... Qb6 {[%clk 0:02:59.1]} 5. Qb3 {[%clk 0:02:54.2]}
5... c4 {[%clk 0:02:59.6]} 6. Qc2 {[%clk 0:02:39.4]} 6... e5 {[%clk 0:02:59.5]}
7. dxe5 {[%clk 0:02:28.8]} 7... Bf5 {[%clk 0:02:59.8]} 8. Qc1 {[%clk 0:02:19.8]}
8... g5 {[%clk 0:03:00.3]} 9. Bg3 {[%clk 0:02:12]} 9... h5 {[%clk 0:03:00.6]}
10. h3 {[%clk 0:02:09.2]} 10... Bg7 {[%clk 0:03:00.4]} 11. Nf3 {[%clk
0:02:05.7]} 11... g4 {[%clk 0:02:40.9]} 12. hxg4 {[%clk 0:02:01.6]} 12... hxg4
{[%clk 0:02:41.8]} 13. Rxh8 {[%clk 0:02:01.7]} 13... Bxh8 {[%clk 0:02:42.7]} 14.
Nd4 {[%clk 0:02:01.3]} 14... Bxb1 {[%clk 0:02:31.4]} 15. Qxb1 {[%clk 0:01:53.2]}
15... Bxe5 {[%clk 0:02:31.8]} 16. Bxe5 {[%clk 0:01:33.5]} 16... Nxe5 {[%clk
0:02:32.7]} 17. Qf5 {[%clk 0:01:29]} 17... Qf6 {[%clk 0:02:27.3]} 18. O-O-O
{[%clk 0:01:26.1]} 18... Qxf5 {[%clk 0:02:19.3]} 19. Nxf5 {[%clk 0:01:27]} 19...
O-O-O {[%clk 0:02:19.8]} 20. Be2 {[%clk 0:01:25]} 20... Nf6 {[%clk 0:02:19]} 21.
Rd4 {[%clk 0:01:20.4]} 21... Kc7 {[%clk 0:02:14.1]} 22. Ne7 {[%clk 0:00:46.9]}
22... Kd6 {[%clk 0:02:08.8]} 23. Nf5+ {[%clk 0:00:45.3]} 23... Kc5 {[%clk
0:02:09.3]} 24. b4+ {[%clk 0:00:40.6]} 24... cxb3 {[%clk 0:02:08]} 25. axb3
{[%clk 0:00:41.5]} 25... Ne4 {[%clk 0:02:06]} 26. b4+ {[%clk 0:00:28.6]} 26...
Kb6 {[%clk 0:02:06.3]} 27. c4 {[%clk 0:00:21.4]} 27... Nxf2 {[%clk 0:01:41.2]}
28. Rxd5 {[%clk 0:00:19.7]} 28... Rxd5 {[%clk 0:01:35.9]} 29. cxd5 {[%clk
0:00:20.6]} 29... Nfd3+ {[%clk 0:01:32.9]} 30. Kd2 {[%clk 0:00:13.9]} 30... Nxb4
{[%clk 0:01:31.9]} 31. Kc3 {[%clk 0:00:14.2]} 31... Kc5 {[%clk 0:01:27.4]} 32.
e4 {[%clk 0:00:12.2]} 32... a5 {[%clk 0:01:22.7]} 33. Ne3 {[%clk 0:00:11.5]}
33... a4 {[%clk 0:01:11.4]} 34. Nxg4 {[%clk 0:00:07.1]} 34... Nxg4 {[%clk
0:01:10.8]} 35. Bxg4 {[%clk 0:00:08]} 35... a3 {[%clk 0:01:11.4]} 36. Kb3 {[%clk
0:00:08]} 36... a2 {[%clk 0:01:11.7]} 37. Kb2 {[%clk 0:00:08]} 37... Kd6 {[%clk
0:01:10.8]} 38. Bd1 {[%clk 0:00:05.3]} 38... Ke5 {[%clk 0:01:09.6]} 39. Bb3
{[%clk 0:00:05.1]} 39... Kxe4 {[%clk 0:01:09.1]} 40. d6 {[%clk 0:00:05.3]} 40...
f5 {[%clk 0:01:07.1]} 41. Ba4 {[%clk 0:00:04.7]} 41... Nd3+ {[%clk 0:01:04.2]}
42. Kxa2 {[%clk 0:00:04.5]} 42... Nc5 {[%clk 0:01:05.1]} 43. d7 {[%clk
0:00:05.1]} 43... Ne6 {[%clk 0:01:00.2]} 44. Kb2 {[%clk 0:00:03.8]} 44... Ke5
{[%clk 0:00:58.5]} 45. Bc2 {[%clk 0:00:03.5]} 45... Kd6 {[%clk 0:00:59]} 46.
Bxf5 {[%clk 0:00:02.7]} 46... Kxd7 {[%clk 0:00:59.3]} 47. g4 {[%clk 0:00:03.6]}
47... Ke7 {[%clk 0:00:59.2]} 48. Bxe6 {[%clk 0:00:03]} 48... Kxe6 {[%clk
0:01:00.1]} 49. Kb3 {[%clk 0:00:03.9]} 49... Kf6 {[%clk 0:01:00.6]} 50. Kb4
{[%clk 0:00:04.8]} 50... Kg5 {[%clk 0:01:01.5]} 51. Kb5 {[%clk 0:00:05.7]} 51...
Kxg4 {[%clk 0:01:02.4]} 52. Kb6 {[%clk 0:00:06.6]} 52... Kf4 {[%clk 0:01:02.1]}
53. Kxb7 {[%clk 0:00:07.5]} 1/2-1/2